fUST/lending_fUST_20250617
["ID","MTS","AMOUNT","RATE_DAILY","PERIOD"]
[366160363,1750092641641,-360.0,0.00023287,4]
[366160365,1750092641651,-460.0,0.00023287,4]
[366160367,1750092641660,-607.21,0.00023287,4]
[366160369,1750092641670,-500.0,0.00023288,2]
[366160371,1750092641680,-500.0,0.00023288,2]
[366160373,1750092641689,-500.0,0.00023288,2]
[366160376,1750092641700,-500.0,0.00023288,2]
[366160378,1750092641711,-500.0,0.00023288,2]
[366160380,1750092641720,-500.0,0.00023288,2]
[366160382,1750092641733,-500.0,0.00023288,2]
[366160384,1750092641742,-366.10565531,0.00023288,2]
[366160386,1750092641753,-500.0,0.00023288,2]
[366160388,1750092641762,-500.0,0.00023288,2]
[366160390,1750092641771,-500.0,0.00023288,2]
[366160392,1750092641782,-500.0,0.00023288,2]
[366160394,1750092641791,-500.0,0.00023288,2]
[366160396,1750092641801,-702.29,0.00023319,4]
[366160398,1750092641810,-500.0,0.00023333,2]
[366160400,1750092641820,-153.0,0.00023342,2]
[366160402,1750092641829,-158.9308009,0.00023342,2]
[366160404,1750092641839,-153.0,0.00023342,2]
[366160406,1750092641849,-158.9308009,0.00023342,2]
[366160408,1750092641858,-177.073212,0.00023342,2]
[366160410,1750092641867,-573.9994554,0.00023342,2]
[366160412,1750092641877,-153.0,0.00023342,2]
[366160413,1750092641886,-153.0,0.00023342,2]
[366160415,1750092641896,-158.9308009,0.00023342,2]
[366160417,1750092641905,-177.073212,0.00023342,2]
[366160419,1750092641915,-573.9994554,0.00023342,2]
[366160421,1750092641925,-153.0,0.00023342,2]
[366160423,1750092641936,-177.073212,0.00023342,2]
[366160425,1750092641948,-158.9308009,0.00023342,2]
[366160427,1750092641958,-306.0,0.00023342,2]
[366160429,1750092641967,-573.9994554,0.00023342,2]
[366160431,1750092641978,-158.9308009,0.00023342,2]
[366160433,1750092641988,-177.073212,0.00023342,2]
[366160435,1750092641998,-573.9994554,0.00023342,2]
[366160437,1750092642007,-158.9308009,0.00023342,2]
[366160440,1750092642019,-153.0,0.00023342,2]
[366160441,1750092642029,-158.9308009,0.00023342,2]
[366160443,1750092642038,-158.3309813,0.00023342,2]
[366160446,1750092642048,-800.0,0.00023358,2]
[366160447,1750092642058,-964.0,0.000234,2]
[366160450,1750092642070,-2160.0,0.000234,2]
[366160452,1750092642079,-653.0,0.000234,2]
[366160453,1750092642090,-406.0,0.000234,2]
[366160455,1750092642100,-702.29,0.00023419,6]
[366160457,1750092642110,-309.32545947,0.00023448,2]
[366160459,1750092642120,-702.29,0.00023519,5]
[366160462,1750092642130,-792.24,0.00023561,4]
[366160463,1750092642140,-765.7,0.00023561,4]
[366160465,1750092642150,-460.0,0.00023561,4]
[366160467,1750092642159,-460.0,0.00023561,4]
[366160469,1750092642169,-527.97437383,0.00023561,4]
[366160471,1750092642179,-460.0,0.00023561,4]
[366160473,1750092642188,-504.41,0.00023561,4]
[366160475,1750092642199,-460.0,0.00023561,4]
[366160477,1750092642209,-597.64,0.00023561,4]
[366160479,1750092642219,-460.0,0.00023561,4]
[366160481,1750092642229,-310.83150042,0.00023561,4]
[366160483,1750092642239,-460.0,0.00023561,4]
[366160486,1750092642249,-460.0,0.00023561,4]
[366160488,1750092642259,-1357.78,0.00023561,4]
[366160489,1750092642268,-698.17,0.00023561,4]
[366160492,1750092642278,-786.1,0.00023561,4]
[366160494,1750092642288,-1049.09,0.00023561,4]
[366160496,1750092642297,-942.21,0.00023561,4]
[366160498,1750092642307,-460.0,0.00023561,4]
[366160500,1750092642317,-607.21,0.00023561,4]
[366160502,1750092642327,-158.66118946,0.00023562,2]
[366160504,1750092642336,-702.29,0.00023619,5]
[366160506,1750092642345,-151.0,0.000237,9]
[366160508,1750092642355,-35701.1297649,0.00023719,2]
[366160510,1750092642365,-702.29,0.00023719,4]
[366160512,1750092642374,-5000.0,0.00023727,2]
[366160514,1750092642385,-12500.0,0.00023791,3]
[366160516,1750092642394,-160.0,0.00023791,3]
[366160518,1750092642404,-160.0,0.00023791,3]
[366160520,1750092642413,-424.54874296,0.00023791,3]
[366160521,1750092642423,-10778.06372513,0.000238,3]
[366160524,1750092642432,-12500.0,0.000238,3]
[366160526,1750092642442,-6621.30671623,0.000238,3]
[366160528,1750092642452,-702.29,0.00023819,3]
[366160530,1750092642462,-439.85234204,0.00023832,2]
[366160533,1750092642472,-963.0,0.00023834,2]
[366160535,1750092642481,-792.24,0.00023835,4]
[366160537,1750092642491,-765.7,0.00023835,4]
[366160539,1750092642501,-460.0,0.00023835,4]
[366160542,1750092642510,-460.0,0.00023835,4]
[366160544,1750092642520,-460.0,0.00023835,4]
[366160546,1750092642529,-504.41,0.00023835,4]
[366160548,1750092642538,-460.0,0.00023835,4]
[366160551,1750092642548,-460.0,0.00023835,4]
[366160553,1750092642557,-597.64,0.00023835,4]
[366160555,1750092642567,-363.74,0.00023835,4]
[366160557,1750092642577,-460.0,0.00023835,4]
[366160559,1750092642586,-1357.78,0.00023835,4]
[366160561,1750092642595,-698.17,0.00023835,4]
[366160563,1750092642605,-786.1,0.00023835,4]
[366160565,1750092642615,-1049.09,0.00023835,4]
[366160567,1750092642625,-942.21,0.00023835,4]
[366160569,1750092642636,-397.76,0.00023835,4]
[366160571,1750092642646,-607.21,0.00023835,4]
[366160573,1750092642657,-151.0,0.000239,6]
[366160575,1750092642668,-309.32545947,0.000239,2]
[366160577,1750092642678,-3375.52271451,0.000239,2]
[366160579,1750092642688,-600.0,0.00023904,2]
[366160581,1750092642698,-702.29,0.00023919,5]
[366160583,1750092642708,-500.0,0.00023973,2]
[366160585,1750092642719,-500.0,0.00023973,2]
[366160587,1750092642729,-500.0,0.00023973,2]
[366160589,1750092642739,-170.05818164,0.00023973,2]
[366160591,1750092642749,-500.0,0.00023973,2]
[366160593,1750092642759,-500.0,0.00023973,2]
[366160595,1750092642769,-501.8668994,0.00023973,2]
[366160597,1750092642779,-500.0,0.00023973,2]
[366160600,1750092642789,-500.0,0.00023973,2]
[366160601,1750092642800,-500.0,0.00023973,2]
[366160603,1750092642809,-500.0,0.00023973,2]
[366160605,1750092642819,-500.0,0.00023973,2]
[366160607,1750092642829,-500.84919256,0.00023973,2]
[366160609,1750092642838,-500.0,0.00023973,2]
[366160611,1750092642848,-500.0,0.00023973,2]
[366160613,1750092642857,-500.0,0.00023973,2]
[366160615,1750092642867,-500.0,0.00023973,2]
[366160617,1750092642878,-500.0,0.00023973,2]
[366160619,1750092642887,-171.87098977,0.00023973,2]
[366160621,1750092642897,-336.9302654,0.00023973,2]
[366160623,1750092642906,-500.0,0.00023973,2]
[366160625,1750092642916,-501.54253158,0.00023973,2]
[366160627,1750092642925,-500.0,0.00023973,2]
[366160629,1750092642936,-500.0,0.00023973,2]
[366160641,1750092643052,-600.0,0.00023973,2]
[366160644,1750092643063,-502.19345932,0.00023973,2]
[366160646,1750092643073,-636.55493512,0.00023973,2]
[366160648,1750092643083,-500.0,0.00023973,2]
[366160651,1750092643092,-117465.20689434,0.00024,2]
[366160653,1750092643102,-628206.45371558,0.00024,2]
[366160656,1750092643123,-460.0,0.00023013,4]
[366160658,1750092643133,-127.80625918,0.00024,2]
[366160761,1750092645995,-460.0,0.00021917,4]
[366160762,1750092646005,-530.63,0.00021917,4]
[366160763,1750092646015,-460.0,0.00021917,4]
[366160764,1750092646025,-168.51,0.00022191,4]
[366160765,1750092646036,-460.0,0.00022191,4]
[366160766,1750092646046,-603.96,0.00022465,4]
[366160767,1750092646056,-347.92,0.00022729,10]
[366160768,1750092646065,-205.59,0.00023287,4]
[366160769,1750092646075,-835.67987521,0.00023791,3]
[366160770,1750092646084,-8488.51283661,0.00024,2]
[366160776,1750092652818,5000.0,0.00019,2]
[366160780,1750092672909,177.32,0.00017032,2]
[366160781,1750092678075,168.03110711,6.8e-07,2]
[366160782,1750092678170,168.03110711,6.8e-07,2]
[366160783,1750092691085,200.0,0.00023809,120]
[366160784,1750092698000,2602.08819845,0.00019,2]
[366160788,1750092751157,200.0,0.00023922,120]
[366160790,1750092778602,1000.0,0.00024,120]
[366160792,1750092780148,1000.0,0.00024,120]
[366160793,1750092783744,1000.0,0.00024,120]
[366160794,1750092784616,1000.0,0.00024,120]
[366160797,1750092816468,467.877677,0.00013699,2]
[366160803,1750092885791,5000.0,0.00018,2]
[366160805,1750092901526,2397.91180155,0.00018,2]
[366160811,1750092931300,200.0,0.00023658,120]
[366160822,1750093051784,200.0,0.00024345,120]
[366160824,1750093073519,400.0,0.00024657,120]
[366160825,1750093104741,1948.89,0.00018,2]
[366160826,1750093115076,1948.89,0.00018,2]
[366160827,1750093125922,1461.66,0.00018,2]
[366160828,1750093154425,609.03,0.00018,2]
[366160829,1750093165591,913.54,0.00018,2]
[366160830,1750093182813,912.0,0.00018,2]
[366160909,1750093231373,200.0,0.00024525,120]
[366160929,1750093376190,500.0,0.00024658,120]
[366160934,1750093387401,500.0,0.00024658,120]
[366160936,1750093399620,500.0,0.00024658,120]
[366160937,1750093411596,500.0,0.00024658,120]
[366160938,1750093436201,544.0,0.00024658,120]
[366160939,1750093471505,200.0,0.00024515,120]
[366160940,1750093532420,200.0,0.00024555,120]
[366160945,1750093687961,2500.0,0.00024658,120]
[366160947,1750093711351,200.0,0.00023849,120]
[366160948,1750093719524,2500.0,0.00021918,60]
[366161017,1750093832303,-210.6172732,0.00018173,2]
[366161019,1750093832320,-152.4984322,0.00018368,2]
[366161021,1750093832335,-73.8562494,0.00018368,2]
[366161023,1750093832345,-250.520541,0.00019178,2]
[366161025,1750093832355,-500.0,0.00019366,2]
[366161027,1750093832365,-287.34577963,0.00019366,2]
[366161029,1750093832376,-500.0,0.00019366,2]
[366161030,1750093832386,-405.37424447,0.00019366,2]
[366161031,1750093832396,-500.0,0.00019366,2]
[366161033,1750093832406,-500.0,0.00019366,2]
[366161034,1750093832416,-500.0,0.00019366,2]
[366161036,1750093832427,-500.0,0.00019366,2]
[366161037,1750093832436,-500.0,0.00019366,2]
[366161039,1750093832446,-500.0,0.00019366,2]
[366161041,1750093832455,-500.0,0.00019366,2]
[366161042,1750093832464,-500.0,0.00019366,2]
[366161043,1750093832475,-500.0,0.00019366,2]
[366161044,1750093832484,-500.0,0.00019366,2]
[366161045,1750093832494,-299.91113061,0.00019366,2]
[366161046,1750093832504,-500.0,0.00019366,2]
[366161047,1750093832513,-500.0,0.00019366,2]
[366161048,1750093832524,-500.0,0.00019366,2]
[366161049,1750093832534,-500.0,0.00019366,2]
[366161050,1750093832543,-500.0,0.00019366,2]
[366161051,1750093832553,-210.49834777,0.00019366,2]
[366161052,1750093832563,-500.0,0.00019366,2]
[366161053,1750093832574,-500.0,0.00019366,2]
[366161054,1750093832586,-500.0,0.00019366,2]
[366161055,1750093832596,-316.90497665,0.00019366,2]
[366161056,1750093832606,-500.0,0.00019366,2]
[366161057,1750093832616,-500.0,0.00019366,2]
[366161058,1750093832626,-500.0,0.00019366,2]
[366161059,1750093832636,-500.0,0.00019366,2]
[366161060,1750093832646,-500.0,0.00019366,2]
[366161061,1750093832656,-185.29366998,0.00019366,2]
[366161062,1750093832666,-300.0,0.00019366,2]
[366161063,1750093832675,-188.89506093,0.00019366,2]
[366161090,1750093838056,-530.1137733,0.00018368,2]
[366161091,1750093838067,-500.0,0.00019366,2]
[366161092,1750093838078,-111.10493907,0.00019366,2]
[366161093,1750093838089,-1200.0,0.00019366,2]
[366161094,1750093838100,-26544.09010895,0.00019367,2]
[366161095,1750093838113,-1992.73177864,0.00019367,2]
[366161096,1750093838124,-500.0,0.00019368,2]
[366161097,1750093838135,-409.0418565,0.00019368,2]
[366161098,1750093838145,-500.0,0.00019368,2]
[366161099,1750093838155,-5998.19636011,0.00019369,2]
[366161100,1750093838403,-18901.80363989,0.00019369,2]
[366161101,1750093838413,-730.1325499,0.00019387,2]
[366161102,1750093838422,-951.708438,0.00019453,2]
[366161103,1750093838432,-2393.5837865,0.00019521,2]
[366161104,1750093838442,-246.35976733,0.00019699,2]
[366161105,1750093838452,-640.4394266,0.0001975,2]
[366161106,1750093838462,-233.58256088,0.00020037,2]
[366161107,1750093838472,-500.0,0.00020187,2]
[366161108,1750093838482,-467.877677,0.00020187,2]
[366161109,1750093838492,-167.586,0.00020466,2]
[366161110,1750093838502,-1363.74,0.00020552,2]
[366161111,1750093838515,-229.90125484,0.00020808,2]
[366161112,1750093838525,-835.67987521,0.00020808,2]
[366161113,1750093838535,-160.0,0.00020808,2]
[366161114,1750093838546,-424.54874296,0.00020808,2]
[366161115,1750093838556,-160.0,0.00020808,2]
[366161116,1750093838567,-196.1815304,0.00020969,2]
[366161117,1750093838577,-500.0,0.00021064,2]
[366161118,1750093838588,-289.94,0.00021907,10]
[366161119,1750093838598,-241.61,0.00021907,10]
[366161120,1750093838608,-489.0698376,0.00021917,4]
[366161121,1750093838617,-460.0,0.00021917,4]
[366161122,1750093838626,-708.37,0.00021917,4]
[366161123,1750093838635,-460.0,0.00021917,4]
[366161124,1750093838644,-460.0,0.00021917,2]
[366161125,1750093838654,-460.0,0.00021917,4]
[366161126,1750093838665,-460.0,0.00021917,4]
[366161127,1750093838675,-460.0,0.00021917,4]
[366161128,1750093838685,-472.2,0.00021917,4]
[366161129,1750093838695,-807.63,0.00021917,4]
[366161130,1750093838705,-752.83,0.00021917,4]
[366161131,1750093838714,-460.0,0.00021917,4]
[366161132,1750093838725,-460.0,0.00021917,4]
[366161133,1750093838735,-460.0,0.00021917,4]
[366161134,1750093838744,-460.0,0.00021917,4]
[366161135,1750093838754,-460.0,0.00021917,4]
[366161136,1750093838764,-563.6217968,0.00021917,4]
[366161137,1750093838778,-460.0,0.00021917,4]
[366161138,1750093838792,-460.0,0.00021917,4]
[366161139,1750093838805,-460.0,0.00021917,4]
[366161140,1750093838819,-460.0,0.00021917,4]
[366161141,1750093838832,-460.0,0.00021917,4]
[366161142,1750093838846,-460.0,0.00021917,4]
[366161143,1750093838857,-460.0,0.00021917,4]
[366161144,1750093838868,-460.0,0.00021917,4]
[366161145,1750093838880,-460.0,0.00021917,4]
[366161146,1750093838893,-460.0,0.00021917,4]
[366161147,1750093838905,-462.64,0.00021917,4]
[366161148,1750093838918,-46.44470609,0.00021917,4]
[366161638,1750093891991,437.626083,0.00013699,2]
[366161642,1750093960968,423.28224571,0.00024657,120]
[366161646,1750094071250,200.0,0.00023775,120]
[366161647,1750094181446,1000.0,0.000214,120]
[366161648,1750094182438,1000.0,0.000214,120]
[366161649,1750094183099,1000.0,0.000214,120]
[366161650,1750094183717,1000.0,0.000214,120]
[366161652,1750094250738,200.0,0.00024344,120]
[366161674,1750094873019,4854.46463826,0.00018,2]
[366161676,1750094919672,23301.70331313,0.00018,2]
[366161684,1750095027579,415.744778,0.00013699,2]
[366161709,1750095032275,-475.854219,0.00018367,2]
[366161710,1750095032285,-666.0,0.00018367,2]
[366161713,1750095032295,-300.0,0.00018999,2]
[366161715,1750095032305,-598.98706774,0.00018999,2]
[366161716,1750095032317,-601.01293226,0.00018999,2]
[366161717,1750095032327,-477.88706774,0.00019,2]
[366161718,1750095032339,-4299.525,0.00019,2]
[366161747,1750095038132,-7916.31851097,0.00019,2]
[366161749,1750095038142,-200.416432,0.00019178,2]
[366161751,1750095038152,-1125.17423817,0.000193,2]
[366161753,1750095038162,-416.73264748,0.00019941,2]
[366161755,1750095038172,-500.0,0.00019999,2]
[366161756,1750095038182,-500.0,0.00019999,2]
[366161758,1750095038192,-190.05537198,0.00019999,2]
[366161761,1750095038202,-500.0,0.00019999,2]
[366161764,1750095038212,-500.0,0.00019999,2]
[366161766,1750095038222,-641.08980887,0.00019999,2]
[366161768,1750095038232,-381.69049767,0.00019999,2]
[366161770,1750095038242,-500.0,0.00019999,2]
[366161772,1750095038252,-194.5076377,0.0002,2]
[366161774,1750095038263,-15924.26116635,0.0002,2]
[366161776,1750095038275,-2469.15522165,0.0002,2]
[366161778,1750095038288,-2286.23229928,0.0002,2]
[366161780,1750095038299,-416.73264748,0.00020012,2]
[366161782,1750095038309,-415.744778,0.00020187,2]
[366161784,1750095038319,-500.0,0.00020441,2]
[366161786,1750095038329,-486.32929955,0.00020441,2]
[366161788,1750095038339,-24900.0,0.00020442,2]
[366161790,1750095038349,-416.73264748,0.00020463,2]
[366161792,1750095038360,-167.586,0.00020464,2]
[366161793,1750095038370,-375.0,0.00020709,2]
[366161795,1750095038381,-160.0,0.00020786,2]
[366161797,1750095038392,-160.0,0.00020786,2]
[366161799,1750095038402,-416.73264748,0.00020786,2]
[366161801,1750095038412,-1000.0,0.00021,21]
[366161803,1750095038422,-416.73264748,0.0002101,2]
[366161805,1750095038432,-4780.1427004,0.00021022,2]
[366161806,1750095038442,-730.8183294,0.00021123,2]
[366161808,1750095038452,-365.4091647,0.00021123,2]
[366161810,1750095038462,-365.4091647,0.00021123,2]
[366161812,1750095038471,-365.4091647,0.00021123,2]
[366161814,1750095038482,-416.73264748,0.00021145,2]
[366161816,1750095038492,-730.8183294,0.00021241,2]
[366161818,1750095038502,-1346.38,0.00021255,2]
[366161820,1750095038512,-300.39179917,0.00021559,2]
[366161822,1750095038521,-416.73264748,0.00021564,2]
[366161823,1750095038531,-501.0656592,0.00021567,2]
[366161825,1750095038541,-416.73264749,0.00021857,2]
[366161827,1750095038552,-330.0,0.00021917,2]
[366161829,1750095038562,-460.0,0.00021917,4]
[366161831,1750095038571,-411.93621007,0.00021917,2]
[366161833,1750095038582,-460.0,0.00021917,2]
[366161835,1750095038592,-168.55,0.00021917,4]
[366161837,1750095038603,-1008.88,0.00021917,4]
[366161839,1750095038612,-460.0,0.00021917,4]
[366161841,1750095038622,-460.0,0.00021917,4]
[366161843,1750095038632,-576.8,0.00021917,4]
[366161845,1750095038642,-460.0,0.00021917,4]
[366161847,1750095038652,-773.97,0.00021917,4]
[366161849,1750095038662,-721.46,0.00021917,4]
[366161850,1750095038672,-460.0,0.00021917,4]
[366161852,1750095038682,-460.0,0.00021917,4]
[366161854,1750095038692,-460.0,0.00021917,4]
[366161856,1750095038702,-203.67,0.00021917,4]
[366161858,1750095038712,-460.0,0.00021917,4]
[366161860,1750095038722,-413.55529391,0.00021917,4]
[366161862,1750095038732,-460.0,0.00021917,4]
[366161864,1750095038742,-460.0,0.00021917,4]
[366161866,1750095038752,-460.0,0.00021917,4]
[366161868,1750095038763,-460.0,0.00021917,4]
[366161870,1750095038774,-460.0,0.00021917,4]
[366161871,1750095038784,-460.0,0.00021917,4]
[366161873,1750095038794,-1153.03,0.00021917,4]
[366161875,1750095038804,-744.32,0.00021917,4]
[366161877,1750095038815,-460.0,0.00021917,4]
[366161879,1750095038826,-460.0,0.00021917,4]
[366161881,1750095038836,-937.53,0.00021917,4]
[366161883,1750095038847,-173.57991511,0.00021917,4]
[366161885,1750095038857,-681.2,0.00021917,4]
[366161886,1750095038866,-678.86,0.00021917,4]
[366161888,1750095038876,-460.0,0.00021917,4]
[366161890,1750095038886,-460.0,0.00021917,4]
[366161892,1750095038896,-240.0,0.0002193,2]
[366161894,1750095038906,-199.57703929,0.00021983,2]
[366161909,1750095039057,-201.34,0.0002199,10]
[366161912,1750095039077,-500.0,0.00022,2]
[366161914,1750095039088,-1000.0,0.00022,22]
[366161916,1750095039098,-165.0,0.00022,2]
[366161917,1750095039109,-170.0,0.00022,2]
[366161919,1750095039119,-5000.0,0.00022032,2]
[366161921,1750095039130,-167.79,0.00022072,10]
[366161923,1750095039140,-730.8183294,0.00022082,2]
[366161925,1750095039151,-165.10605873,0.00022116,2]
[366161927,1750095039160,-9427.10326847,0.00022182,2]
[366161929,1750095039170,-17689.68126617,0.00022182,2]
[366161931,1750095039180,-240.0,0.00022182,2]
[366161933,1750095039190,-460.0,0.00022191,4]
[366161935,1750095039201,-460.0,0.00022191,2]
[366161936,1750095039211,-1008.88,0.00022191,4]
[366161937,1750095039221,-460.0,0.00022191,4]
[366161938,1750095039232,-460.0,0.00022191,4]
[366161939,1750095039242,-576.8,0.00022191,4]
[366161940,1750095039252,-460.0,0.00022191,4]
[366161941,1750095039262,-773.97,0.00022191,4]
[366161942,1750095039272,-721.46,0.00022191,4]
[366161943,1750095039283,-460.0,0.00022191,4]
[366161944,1750095039293,-460.0,0.00022191,4]
[366161945,1750095039303,-460.0,0.00022191,4]
[366161946,1750095039313,-460.0,0.00022191,4]
[366161947,1750095039323,-460.0,0.00022191,4]
[366161948,1750095039333,-460.0,0.00022191,4]
[366161949,1750095039344,-460.0,0.00022191,4]
[366161950,1750095039355,-1153.03,0.00022191,4]
[366161951,1750095039365,-744.32,0.00022191,4]
[366161952,1750095039376,-460.0,0.00022191,4]
[366161953,1750095039387,-446.63043916,0.00022191,4]
[366161955,1750095039398,-937.53,0.00022191,4]
[366161957,1750095039408,-681.2,0.00022191,4]
[366161959,1750095039418,-678.86,0.00022191,4]
[366161961,1750095039428,-168.0,0.00022331,2]
[366161963,1750095039439,-460.0,0.00022465,4]
[366161965,1750095039449,-460.0,0.00022465,2]
[366161967,1750095039460,-1008.88,0.00022465,4]
[366161969,1750095039470,-460.0,0.00022465,4]
[366161971,1750095039480,-576.8,0.00022465,4]
[366161973,1750095039491,-460.0,0.00022465,4]
[366161975,1750095039501,-773.97,0.00022465,4]
[366161977,1750095039512,-721.46,0.00022465,4]
[366161979,1750095039522,-460.0,0.00022465,4]
[366161981,1750095039534,-480.15,0.00022465,4]
[366161983,1750095039545,-460.0,0.00022465,4]
[366161985,1750095039555,-460.0,0.00022465,4]
[366161987,1750095039566,-460.0,0.00022465,4]
[366161989,1750095039576,-460.0,0.00022465,4]
[366161991,1750095039587,-288.83,0.00022465,4]
[366161993,1750095039597,-1153.03,0.00022465,4]
[366161995,1750095039607,-744.32,0.00022465,4]
[366161997,1750095039617,-460.0,0.00022465,4]
[366161999,1750095039628,-937.53,0.00022465,4]
[366162001,1750095039638,-681.2,0.00022465,4]
[366162003,1750095039648,-678.86,0.00022465,4]
[366162005,1750095039658,-240.0,0.00022472,2]
[366162007,1750095039668,-500.0,0.00022487,2]
[366162009,1750095039678,-500.95406167,0.00022487,2]
[366162011,1750095039688,-458.8132545,0.00022493,2]
[366162013,1750095039698,-153.0,0.00022493,2]
[366162015,1750095039708,-176.5965108,0.00022493,2]
[366162017,1750095039719,-153.0,0.00022493,2]
[366162019,1750095039730,-573.1455814,0.00022493,2]
[366162021,1750095039740,-153.0,0.00022493,2]
[366162023,1750095039750,-153.0,0.00022493,2]
[366162025,1750095039760,-153.0,0.00022493,2]
[366162027,1750095039773,-153.0,0.00022493,2]
[366162029,1750095039783,-153.0,0.00022493,2]
[366162031,1750095039793,-153.0,0.00022493,2]
[366162032,1750095039803,-153.0,0.00022493,2]
[366162036,1750095039823,-168.0,0.00022534,2]
[366162038,1750095039837,-500.0,0.0002255,2]
[366162040,1750095039847,-200.416432,0.00022603,2]
[366162042,1750095039859,-202.6133727,0.00022638,2]
[366162044,1750095039869,-500.0,0.00022689,2]
[366162046,1750095039879,-500.0,0.00022689,2]
[366162048,1750095039889,-460.0,0.00022739,2]
[366162050,1750095039900,-1008.88,0.00022739,4]
[366162052,1750095039910,-460.0,0.00022739,4]
[366162054,1750095039921,-576.8,0.00022739,4]
[366162056,1750095039932,-460.0,0.00022739,4]
[366162058,1750095039942,-773.97,0.00022739,4]
[366162060,1750095039953,-721.46,0.00022739,4]
[366162063,1750095039964,-460.0,0.00022739,4]
[366162065,1750095039974,-460.0,0.00022739,4]
[366162067,1750095039984,-460.0,0.00022739,4]
[366162069,1750095039994,-460.0,0.00022739,4]
[366162071,1750095040004,-460.0,0.00022739,4]
[366162073,1750095040015,-1153.03,0.00022739,4]
[366162075,1750095040026,-744.32,0.00022739,4]
[366162077,1750095040036,-460.0,0.00022739,4]
[366162079,1750095040046,-937.53,0.00022739,4]
[366162081,1750095040056,-681.2,0.00022739,4]
[366162083,1750095040067,-678.86,0.00022739,4]
[366162085,1750095040079,-503.39334109,0.00022771,2]
[366162087,1750095040089,-168.0,0.00022848,2]
[366162090,1750095040100,-1000.0,0.00023,23]
[366162092,1750095040110,-200.0,0.00023,2]
[366162094,1750095040120,-460.0,0.00023013,2]
[366162096,1750095040131,-1008.88,0.00023013,4]
[366162098,1750095040141,-460.0,0.00023013,4]
[366162100,1750095040151,-576.8,0.00023013,4]
[366162102,1750095040162,-460.0,0.00023013,4]
[366162104,1750095040172,-773.97,0.00023013,4]
[366162106,1750095040182,-721.46,0.00023013,4]
[366162108,1750095040192,-408.2559645,0.00023013,4]
[366162110,1750095040203,-460.0,0.00023013,4]
[366162112,1750095040213,-460.0,0.00023013,4]
[366162114,1750095040223,-460.0,0.00023013,4]
[366162116,1750095040233,-460.0,0.00023013,4]
[366162118,1750095040243,-1153.03,0.00023013,4]
[366162120,1750095040254,-744.32,0.00023013,4]
[366162122,1750095040266,-460.0,0.00023013,4]
[366162124,1750095040275,-937.53,0.00023013,4]
[366162126,1750095040286,-681.2,0.00023013,4]
[366162128,1750095040296,-678.86,0.00023013,4]
[366162130,1750095040307,-833.0,0.00023016,2]
[366162132,1750095040317,-365.4091647,0.00023041,2]
[366162134,1750095040327,-365.4091647,0.00023041,2]
[366162136,1750095040338,-365.010441,0.00023041,2]
[366162138,1750095040349,-833.0,0.00023056,2]
[366162140,1750095040359,-500.0,0.00023099,2]
[366162142,1750095040369,-160.0,0.00023099,2]